fUST/lending_fUST_20250221
["ID","MTS","AMOUNT","RATE_DAILY","PERIOD"]
[353853635,1740094252011,-4370.44,0.00014684,2]
[353853636,1740094252020,-500.0,0.00014684,2]
[353853637,1740094252030,-500.0,0.00014684,2]
[353853638,1740094252039,-1671.71,0.00014684,2]
[353853639,1740094252049,-500.0,0.00014684,2]
[353853640,1740094252059,-2799.98,0.00014684,2]
[353853641,1740094252070,-11416.76,0.00014684,2]
[353853642,1740094252079,-1309.24,0.00014684,2]
[353853643,1740094252089,-679.78,0.00014684,2]
[353853644,1740094252099,-2200.0,0.00014719,2]
[353853645,1740094252109,-1000.55898504,0.00014721,2]
[353853646,1740094252118,-1000.0,0.00014721,2]
[353853647,1740094252129,-621.70952141,0.00014721,2]
[353853648,1740094252138,-1000.0,0.00014721,2]
[353853649,1740094252148,-587.96596498,0.00014721,2]
[353853650,1740094252158,-1000.0,0.00014721,2]
[353853651,1740094252168,-1000.0,0.00014721,2]
[353853652,1740094252178,-1000.0,0.00014721,2]
[353853653,1740094252187,-1000.0,0.00014721,2]
[353853654,1740094252197,-1000.0,0.00014721,2]
[353853655,1740094252206,-1000.0,0.00014721,2]
[353853656,1740094252216,-1000.0,0.00014721,2]
[353853657,1740094252225,-58522.24623159,0.00014745,2]
[353853658,1740094252235,-2287.0,0.00014755,2]
[353853659,1740094252244,-500.0,0.00014767,2]
[353853660,1740094252254,-500.0,0.00014767,2]
[353853661,1740094252263,-500.0,0.00014767,2]
[353853662,1740094252273,-500.0,0.00014767,2]
[353853663,1740094252282,-621.58,0.00014767,2]
[353853664,1740094252292,-500.0,0.00014767,2]
[353853665,1740094252302,-780.25,0.00014767,2]
[353853666,1740094252312,-861.13,0.00014767,2]
[353853667,1740094252322,-500.0,0.00014767,2]
[353853668,1740094252332,-500.0,0.00014767,2]
[353853669,1740094252342,-500.0,0.00014767,2]
[353853670,1740094252352,-500.0,0.00014767,2]
[353853671,1740094252362,-566.83,0.00014767,2]
[353853672,1740094252371,-2500.0,0.00014767,2]
[353853673,1740094252380,-500.0,0.00014767,2]
[353853674,1740094252389,-630.90281593,0.00014767,2]
[353853675,1740094252399,-500.0,0.00014767,2]
[353853676,1740094252408,-880.39,0.00014767,2]
[353853677,1740094252417,-650.81,0.00014767,2]
[353853678,1740094252427,-646.72,0.00014767,2]
[353853679,1740094252437,-500.0,0.00014767,2]
[353853680,1740094252447,-500.0,0.00014767,2]
[353853681,1740094252456,-500.0,0.00014767,2]
[353853682,1740094252465,-752.93,0.00014767,2]
[353853683,1740094252475,-950.61,0.00014767,2]
[353853684,1740094252485,-2211.13,0.00014767,2]
[353853685,1740094252495,-921.92,0.00014767,2]
[353853686,1740094252505,-1471.46,0.00014767,2]
[353853687,1740094252514,-1158.92,0.00014767,2]
[353853688,1740094252523,-30771.66,0.00014767,2]
[353853689,1740094252534,-974.73,0.00014767,2]
[353853690,1740094252544,-1439.4,0.00014767,2]
[353853691,1740094252554,-500.0,0.00014767,2]
[353853692,1740094252564,-1913.0,0.00014767,2]
[353853693,1740094252574,-1049.41,0.00014767,2]
[353853694,1740094252583,-1207.72,0.00014767,2]
[353853695,1740094252593,-500.0,0.00014767,2]
[353853696,1740094252603,-2590.22,0.00014767,2]
[353853697,1740094252612,-5110.22,0.00014767,2]
[353853698,1740094252623,-711.86,0.00014767,2]
[353853699,1740094252633,-500.0,0.00014767,2]
[353853700,1740094252644,-2889.63,0.00014767,2]
[353853701,1740094252653,-500.0,0.00014767,2]
[353853702,1740094252663,-1562.09,0.00014767,2]
[353853703,1740094252674,-500.0,0.00014767,2]
[353853704,1740094252686,-500.0,0.00014767,2]
[353853705,1740094252697,-636.21,0.00014767,2]
[353853706,1740094252706,-972.89,0.00014767,2]
[353853707,1740094252716,-500.0,0.00014767,2]
[353853708,1740094252727,-1767.08,0.00014767,2]
[353853709,1740094252736,-1528.59,0.00014767,2]
[353853710,1740094252746,-2717.67,0.00014767,2]
[353853711,1740094252759,-1560.2,0.00014767,2]
[353853712,1740094252768,-1786.89,0.00014767,2]
[353853713,1740094252778,-514.1,0.00014767,2]
[353853714,1740094252788,-1383.63386192,0.00014767,2]
[353853715,1740094252968,-538.0,0.00014216,2]
[353853716,1740094252978,-4357.57818558,0.00014767,2]
[353853717,1740094252989,-2671.530926,0.00014767,2]
[353853718,1740094253176,-349.01424516,0.00013698,2]
[353853722,1740095208598,106.33399277,9.041e-05,2]
[353853723,1740095208634,187.31858823,9.041e-05,2]
[353853752,1740095432315,-250.0,0.00012836,2]
[353853754,1740095432325,-166.66666668,0.00012838,2]
[353853756,1740095432335,-300.0,0.00012938,2]
[353853758,1740095432344,-24293.5225911,0.00012939,2]
[353853760,1740095432354,-776.89604038,0.00013419,2]
[353853762,1740095432363,-242.70886606,0.00013697,2]
[353853764,1740095432373,-376.18470951,0.00013697,2]
[353853766,1740095432382,-500.0,0.00013698,2]
[353853768,1740095432392,-500.0,0.00013698,2]
[353853769,1740095432402,-500.0,0.00013698,2]
[353853770,1740095432412,-500.0,0.00013698,2]
[353853771,1740095432422,-411.24422345,0.00013698,2]
[353853772,1740095432439,-88.75577655,0.00013698,2]
[353853773,1740095432448,-500.0,0.00013698,2]
[353853774,1740095432458,-500.0,0.00013698,2]
[353853775,1740095432468,-500.0,0.00013698,2]
[353853776,1740095432477,-500.0,0.00013698,2]
[353853777,1740095432487,-500.0,0.00013698,2]
[353853778,1740095432496,-500.0,0.00013698,2]
[353853779,1740095432506,-1233.97,0.00013698,2]
[353853780,1740095432516,-500.0,0.00013698,2]
[353853781,1740095432526,-500.0,0.00013698,2]
[353853782,1740095432536,-500.0,0.00013698,2]
[353853784,1740095432546,-597.02,0.00013698,2]
[353853785,1740095432556,-770.1,0.00013698,2]
[353853786,1740095432566,-500.0,0.00013698,2]
[353853787,1740095432576,-723.58,0.00013698,2]
[353853788,1740095432586,-570.54908009,0.00013698,2]
[353853789,1740095432595,-534.41,0.00013698,2]
[353853790,1740095432605,-500.0,0.00013698,2]
[353853791,1740095432614,-500.0,0.00013698,2]
[353853792,1740095432623,-500.0,0.00013698,2]
[353853793,1740095432633,-1000.0,0.00013698,2]
[353853794,1740095432643,-500.0,0.00013698,2]
[353853795,1740095432653,-967.39,0.00013698,2]
[353853796,1740095432662,-549.45,0.00013698,2]
[353853797,1740095432672,-1103.23,0.00013698,2]
[353853798,1740095432682,-500.0,0.00013698,2]
[353853799,1740095432692,-500.0,0.00013698,2]
[353853800,1740095432701,-560.37,0.00013698,2]
[353853801,1740095432711,-676.39,0.00013698,2]
[353853802,1740095432720,-500.0,0.00013698,2]
[353853803,1740095432730,-541.38,0.00013698,2]
[353853804,1740095432740,-503.8,0.00013698,2]
[353853805,1740095432749,-1047.84,0.00013698,2]
[353853806,1740095432758,-500.0,0.00013698,2]
[353853807,1740095432768,-500.0,0.00013698,2]
[353853808,1740095432777,-500.0,0.00013698,2]
[353853809,1740095432786,-841.65,0.00013698,2]
[353853810,1740095432796,-500.0,0.00013698,2]
[353853811,1740095432806,-500.0,0.00013698,2]
[353853812,1740095432816,-500.0,0.00013698,2]
[353853813,1740095432826,-500.0,0.00013698,2]
[353853814,1740095432836,-500.0,0.00013698,2]
[353853815,1740095432846,-570.4,0.00013698,2]
[353853816,1740095432856,-500.0,0.00013698,2]
[353853817,1740095432865,-500.0,0.00013698,2]
[353853818,1740095432874,-500.0,0.00013698,2]
[353853819,1740095432884,-500.0,0.00013698,2]
[353853820,1740095432893,-500.0,0.00013698,2]
[353853821,1740095432903,-224.09737267,0.00013698,2]
[353853822,1740095432913,-500.0,0.00013698,2]
[353853823,1740095432922,-500.0,0.00013698,2]
[353853824,1740095432932,-500.0,0.00013698,2]
[353853825,1740095432941,-500.0,0.00013698,2]
[353853826,1740095432951,-1938.37,0.00013698,2]
[353853827,1740095432961,-500.0,0.00013698,2]
[353853828,1740095432971,-500.0,0.00013698,2]
[353853829,1740095432980,-593.82,0.00013698,2]
[353853830,1740095432990,-7050.85,0.00013698,2]
[353853831,1740095432999,-2996.8,0.00013698,2]
[353853832,1740095433009,-311.19698643,0.00013698,2]
[353853833,1740095433169,-1145.47,0.00013698,2]
[353853834,1740095433180,-1487.23,0.00013698,2]
[353853835,1740095433190,-3493.13,0.00013698,2]
[353853836,1740095433201,-500.0,0.00013698,2]
[353853837,1740095433210,-259.40972313,0.00013698,2]
[353853838,1740095433221,-1176.19,0.00013698,2]
[353853839,1740095433230,-22366.7333809,0.00013698,2]
[353853857,1740095438219,-4623.72153275,0.00013698,2]
[353853858,1740095438231,-11319.81508635,0.00013698,2]
[353853859,1740095438240,-348.13131954,0.00013698,2]
[353853860,1740095438252,-447.60868046,0.00013698,2]
[353853861,1740095438261,-500.0,0.00013698,2]
[353853862,1740095438271,-1798.11,0.00013698,2]
[353853863,1740095438280,-503.03,0.00013698,2]
[353853864,1740095438289,-8293.71823078,0.00013698,2]
[353853865,1740095438300,-5215.68176922,0.00013698,2]
[353853866,1740095438309,-500.0,0.00013698,2]
[353853867,1740095438319,-2522.59,0.00013698,2]
[353853868,1740095438328,-500.0,0.00013698,2]
[353853869,1740095438337,-935.19,0.00013698,2]
[353853870,1740095438346,-1508.34,0.00013698,2]
[353853871,1740095438355,-1209.86,0.00013698,2]
[353853872,1740095438364,-1181.45,0.00013698,2]
[353853873,1740095438373,-840.39,0.00013698,2]
[353853874,1740095438383,-3237.47,0.00013698,2]
[353853875,1740095438392,-6388.26,0.00013698,2]
[353853876,1740095438401,-500.0,0.00013698,2]
[353853877,1740095438411,-500.0,0.00013698,2]
[353853878,1740095438421,-509.15,0.00013698,2]
[353853879,1740095438430,-3258.4,0.00013698,2]
[353853880,1740095438439,-500.0,0.00013698,2]
[353853881,1740095438448,-3411.37,0.00013698,2]
[353853882,1740095438457,-539.08,0.00013698,2]
[353853883,1740095438466,-633.3,0.00013698,2]
[353853884,1740095438476,-500.0,0.00013698,2]
[353853885,1740095438485,-1844.13,0.00013698,2]
[353853886,1740095438494,-500.0,0.00013698,2]
[353853887,1740095438503,-500.0,0.00013698,2]
[353853888,1740095438513,-1148.55,0.00013698,2]
[353853889,1740095438522,-793.49,0.00013698,2]
[353853890,1740095438531,-610.58,0.00013698,2]
[353853891,1740095438541,-1904.41,0.00013698,2]
[353853892,1740095438550,-500.0,0.00013698,2]
[353853893,1740095438559,-1016.61,0.00013698,2]
[353853894,1740095438568,-537.73,0.00013698,2]
[353853895,1740095438577,-2226.56,0.00013698,2]
[353853896,1740095438586,-506.77,0.00013698,2]
[353853897,1740095438595,-1934.19,0.00013698,2]
[353853898,1740095438605,-500.0,0.00013698,2]
[353853899,1740095438614,-500.0,0.00013698,2]
[353853900,1740095438624,-2190.09,0.00013698,2]
[353853901,1740095438633,-500.0,0.00013698,2]
[353853902,1740095438642,-5448.61,0.00013698,2]
[353853903,1740095438651,-522.5,0.00013698,2]
[353853904,1740095438661,-500.0,0.00013698,2]
[353853905,1740095438670,-500.0,0.00013698,2]
[353853906,1740095438680,-700.96,0.00013698,2]
[353853907,1740095438689,-500.0,0.00013698,2]
[353853908,1740095438698,-16769.03,0.00013698,2]
[353853909,1740095438708,-1735.92,0.00013698,2]
[353853910,1740095438717,-500.0,0.00013698,2]
[353853911,1740095438726,-500.0,0.00013698,2]
[353853912,1740095438736,-500.0,0.00013698,2]
[353853913,1740095438745,-500.0,0.00013698,2]
[353853914,1740095438754,-836.75,0.00013698,2]
[353853915,1740095438764,-500.0,0.00013698,2]
[353853916,1740095438773,-1956.0,0.00013698,2]
[353853917,1740095438783,-500.0,0.00013698,2]
[353853918,1740095438792,-500.0,0.00013698,2]
[353853919,1740095438802,-511.50051567,0.00013698,2]
[353853920,1740095438811,-500.0,0.00013698,2]
[353853921,1740095438820,-500.0,0.00013698,2]
[353853922,1740095438829,-1552.03,0.00013698,2]
[353853923,1740095438838,-500.0,0.00013698,2]
[353853924,1740095438847,-164.612171,0.00013699,2]
[353853925,1740095438856,-295.41003252,0.00013699,2]
[353853926,1740095438866,-500.0,0.00013699,2]
[353853927,1740095438875,-500.0,0.00013699,2]
[353853928,1740095438884,-176.65892312,0.00013699,2]
[353853929,1740095438893,-500.0,0.00013699,2]
[353853930,1740095438902,-500.0,0.00013699,2]
[353853931,1740095438911,-500.0,0.00013699,2]
[353853932,1740095438921,-500.0,0.00013699,2]
[353853933,1740095438930,-500.0,0.00013699,2]
[353853934,1740095438940,-500.0,0.00013699,2]
[353853935,1740095438949,-500.0,0.00013699,2]
[353853936,1740095438959,-500.0,0.00013699,2]
[353853937,1740095438968,-500.0,0.00013699,2]
[353853938,1740095438978,-500.0,0.00013699,2]
[353853939,1740095438987,-500.0,0.00013699,2]
[353853940,1740095438996,-500.0,0.00013699,2]
[353853941,1740095439005,-500.0,0.00013699,2]
[353853942,1740095439015,-500.0,0.00013699,2]
[353853943,1740095439025,-500.0,0.00013699,2]
[353853944,1740095439034,-158.6902927,0.00013699,2]
[353853945,1740095439044,-500.0,0.00013699,2]
[353853946,1740095439056,-500.0,0.00013699,2]
[353853947,1740095439066,-500.0,0.00013699,2]
[353853948,1740095439075,-500.0,0.00013699,2]
[353853949,1740095439085,-500.0,0.00013699,2]
[353853950,1740095439094,-500.0,0.00013699,2]
[353853951,1740095439103,-500.0,0.00013699,2]
[353853952,1740095439113,-500.0,0.00013699,2]
[353853953,1740095439122,-456.34783748,0.00013699,2]
[353853954,1740095439133,-500.0,0.00013699,2]
[353853955,1740095439143,-500.0,0.0001378,2]
[353853956,1740095439152,-500.0,0.0001378,2]
[353853957,1740095439161,-500.0,0.0001378,2]
[353853958,1740095439171,-500.0,0.0001378,2]
[353853959,1740095439180,-500.0,0.0001378,2]
[353853960,1740095439190,-500.0,0.0001378,2]
[353853961,1740095439199,-500.0,0.0001378,2]
[353853962,1740095439208,-500.0,0.0001378,2]
[353853963,1740095439217,-500.0,0.0001378,2]
[353853964,1740095439227,-500.0,0.0001378,2]
[353853965,1740095439236,-500.0,0.0001378,2]
[353853966,1740095439246,-500.0,0.0001378,2]
[353853967,1740095439255,-208.89385453,0.0001378,2]
[353853968,1740095439264,-500.0,0.0001378,2]
[353853969,1740095439273,-597.02,0.0001378,2]
[353853970,1740095439283,-770.1,0.0001378,2]
[353853971,1740095439292,-500.0,0.0001378,2]
[353853972,1740095439302,-723.58,0.0001378,2]
[353853973,1740095439311,-534.41,0.0001378,2]
[353853974,1740095439320,-500.0,0.0001378,2]
[353853975,1740095439329,-500.0,0.0001378,2]
[353853976,1740095439338,-500.0,0.0001378,2]
[353853977,1740095439348,-1000.0,0.0001378,2]
[353853978,1740095439357,-500.0,0.0001378,2]
[353853979,1740095439366,-967.39,0.0001378,2]
[353853980,1740095439376,-549.45,0.0001378,2]
[353853981,1740095439385,-1103.23,0.0001378,2]
[353853982,1740095439394,-500.0,0.0001378,2]
[353853983,1740095439403,-500.0,0.0001378,2]
[353853984,1740095439412,-560.37,0.0001378,2]
[353853985,1740095439422,-676.39,0.0001378,2]
[353853986,1740095439432,-500.0,0.0001378,2]
[353853987,1740095439442,-541.38,0.0001378,2]
[353853988,1740095439451,-503.8,0.0001378,2]
[353853989,1740095439461,-1047.84,0.0001378,2]
[353853990,1740095439470,-500.0,0.0001378,2]
[353853991,1740095439480,-316.09434136,0.0001378,2]
[353853992,1740095439489,-500.0,0.0001378,2]
[353853993,1740095439498,-841.65,0.0001378,2]
[353853994,1740095439508,-500.0,0.0001378,2]
[353853995,1740095439517,-500.0,0.0001378,2]
[353853996,1740095439527,-500.0,0.0001378,2]
[353853997,1740095439536,-500.0,0.0001378,2]
[353853998,1740095439545,-570.4,0.0001378,2]
[353853999,1740095439554,-500.0,0.0001378,2]
[353854000,1740095439564,-500.0,0.0001378,2]
[353854001,1740095439573,-500.0,0.0001378,2]
[353854002,1740095439582,-500.0,0.0001378,2]
[353854003,1740095439592,-500.0,0.0001378,2]
[353854004,1740095439601,-500.0,0.0001378,2]
[353854005,1740095439610,-1938.37,0.0001378,2]
[353854006,1740095439619,-500.0,0.0001378,2]
[353854007,1740095439629,-500.0,0.0001378,2]
[353854008,1740095439638,-593.82,0.0001378,2]
[353854009,1740095439647,-7050.85,0.0001378,2]
[353854010,1740095439657,-2996.8,0.0001378,2]
[353854011,1740095439666,-1145.47,0.0001378,2]
[353854012,1740095439676,-1487.23,0.0001378,2]
[353854013,1740095439685,-3493.13,0.0001378,2]
[353854014,1740095439695,-500.0,0.0001378,2]
[353854015,1740095439705,-1176.19,0.0001378,2]
[353854016,1740095439716,-38310.27,0.0001378,2]
[353854017,1740095439726,-795.74,0.0001378,2]
[353854018,1740095439737,-500.0,0.0001378,2]
[353854019,1740095439747,-1798.11,0.0001378,2]
[353854020,1740095439756,-503.03,0.0001378,2]
[353854021,1740095439766,-13509.4,0.0001378,2]
[353854022,1740095439775,-500.0,0.0001378,2]
[353854023,1740095439785,-2522.59,0.0001378,2]
[353854024,1740095439795,-500.0,0.0001378,2]
[353854025,1740095439804,-935.19,0.0001378,2]
[353854026,1740095439813,-1508.34,0.0001378,2]
[353854031,1740095439942,-1209.86,0.0001378,2]
[353854033,1740095439953,-840.39,0.0001378,2]
[353854035,1740095439963,-1181.45,0.0001378,2]
[353854037,1740095439972,-3237.47,0.0001378,2]
[353854039,1740095439982,-6388.26,0.0001378,2]
[353854041,1740095439992,-500.0,0.0001378,2]
[353854043,1740095440002,-509.15,0.0001378,2]
[353854046,1740095440012,-3258.4,0.0001378,2]
[353854049,1740095440022,-3411.37,0.0001378,2]
[353854051,1740095440031,-539.08,0.0001378,2]
[353854053,1740095440041,-633.3,0.0001378,2]
[353854055,1740095440052,-500.0,0.0001378,2]
[353854057,1740095440062,-1844.13,0.0001378,2]
[353854060,1740095440072,-500.0,0.0001378,2]
[353854063,1740095440082,-1148.55,0.0001378,2]
[353854065,1740095440091,-793.49,0.0001378,2]
[353854067,1740095440101,-610.58,0.0001378,2]
[353854069,1740095440110,-1904.41,0.0001378,2]
[353854072,1740095440120,-500.0,0.0001378,2]
[353854074,1740095440130,-1016.61,0.0001378,2]
[353854076,1740095440139,-537.73,0.0001378,2]
[353854078,1740095440148,-2226.56,0.0001378,2]
[353854080,1740095440159,-506.77,0.0001378,2]
[353854082,1740095440168,-1934.19,0.0001378,2]
[353854084,1740095440178,-500.0,0.0001378,2]
[353854086,1740095440187,-2190.09,0.0001378,2]
[353854088,1740095440197,-500.0,0.0001378,2]
[353854090,1740095440207,-5448.61,0.0001378,2]
[353854092,1740095440216,-522.5,0.0001378,2]
[353854094,1740095440226,-500.0,0.0001378,2]
[353854096,1740095440236,-500.0,0.0001378,2]
[353854098,1740095440246,-700.96,0.0001378,2]
[353854100,1740095440255,-16769.03,0.0001378,2]
[353854102,1740095440265,-1735.92,0.0001378,2]
[353854104,1740095440274,-500.0,0.0001378,2]
[353854106,1740095440284,-500.0,0.0001378,2]
[353854109,1740095440293,-500.0,0.0001378,2]
[353854111,1740095440303,-500.0,0.0001378,2]
[353854113,1740095440312,-836.75,0.0001378,2]
[353854115,1740095440322,-500.0,0.0001378,2]
[353854118,1740095440331,-1956.0,0.0001378,2]
[353854120,1740095440341,-500.0,0.0001378,2]
[353854123,1740095440351,-500.0,0.0001378,2]
[353854125,1740095440361,-500.0,0.0001378,2]
[353854128,1740095440371,-1552.03,0.0001378,2]
[353854129,1740095440382,-596.720443,0.000138,4]
[353854132,1740095440392,-154.7577468,0.000138,2]
[353854133,1740095440402,-154.7577468,0.000138,2]
[353854135,1740095440411,-154.7577468,0.000138,2]
[353854136,1740095440421,-309.5154936,0.000138,2]
[353854137,1740095440431,-580.43070982,0.00013862,2]
[353854138,1740095440440,-248.7560185,0.00013862,2]
[353854139,1740095440450,-500.0,0.00013863,2]
[353854140,1740095440459,-500.0,0.00013863,2]
[353854141,1740095440468,-500.0,0.00013863,2]
[353854142,1740095440477,-500.0,0.00013863,2]
[353854143,1740095440490,-500.0,0.00013863,2]
[353854144,1740095440500,-500.0,0.00013863,2]
[353854145,1740095440510,-500.0,0.00013863,2]
[353854146,1740095440520,-500.0,0.00013863,2]
[353854147,1740095440530,-500.0,0.00013863,2]
[353854149,1740095440539,-500.0,0.00013863,2]
[353854151,1740095440549,-500.0,0.00013863,2]
[353854152,1740095440559,-500.0,0.00013863,2]
[353854154,1740095440570,-500.0,0.00013863,2]
[353854155,1740095440579,-597.02,0.00013863,2]
[353854156,1740095440589,-770.1,0.00013863,2]
[353854157,1740095440599,-500.0,0.00013863,2]
[353854158,1740095440608,-723.58,0.00013863,2]
[353854159,1740095440618,-534.41,0.00013863,2]
[353854160,1740095440627,-500.0,0.00013863,2]
[353854161,1740095440636,-500.0,0.00013863,2]
[353854162,1740095440646,-500.0,0.00013863,2]
[353854163,1740095440655,-1000.0,0.00013863,2]
[353854164,1740095440664,-500.0,0.00013863,2]
[353854165,1740095440674,-967.39,0.00013863,2]
[353854166,1740095440684,-549.45,0.00013863,2]
[353854167,1740095440693,-1103.23,0.00013863,2]
[353854168,1740095440702,-500.0,0.00013863,2]
[353854169,1740095440712,-500.0,0.00013863,2]
[353854170,1740095440721,-560.37,0.00013863,2]
[353854171,1740095440731,-676.39,0.00013863,2]
[353854172,1740095440741,-500.0,0.00013863,2]
[353854173,1740095440751,-541.38,0.00013863,2]
[353854174,1740095440761,-503.8,0.00013863,2]
[353854175,1740095440771,-1047.84,0.00013863,2]
[353854176,1740095440781,-500.0,0.00013863,2]
[353854177,1740095440791,-500.0,0.00013863,2]
[353854178,1740095440800,-841.65,0.00013863,2]
[353854179,1740095440810,-500.0,0.00013863,2]
[353854180,1740095440820,-500.0,0.00013863,2]
[353854181,1740095440829,-500.0,0.00013863,2]
[353854182,1740095440838,-500.0,0.00013863,2]
[353854183,1740095440848,-570.4,0.00013863,2]
[353854184,1740095440857,-500.0,0.00013863,2]
[353854185,1740095440867,-500.0,0.00013863,2]
[353854186,1740095440876,-396.08892718,0.00013863,2]
[353854187,1740095440886,-500.0,0.00013863,2]
[353854188,1740095440896,-500.0,0.00013863,2]
[353854189,1740095440905,-500.0,0.00013863,2]
[353854190,1740095440915,-1938.37,0.00013863,2]
[353854191,1740095440925,-500.0,0.00013863,2]
[353854192,1740095440935,-500.0,0.00013863,2]
[353854193,1740095440944,-593.82,0.00013863,2]
[353854194,1740095440954,-7050.85,0.00013863,2]
[353854195,1740095440963,-2996.8,0.00013863,2]
[353854196,1740095440972,-1145.47,0.00013863,2]
[353854197,1740095440982,-1487.23,0.00013863,2]
[353854198,1740095440991,-3493.13,0.00013863,2]
[353854199,1740095441002,-500.0,0.00013863,2]
[353854200,1740095441012,-1176.19,0.00013863,2]
[353854201,1740095441022,-38310.27,0.00013863,2]
[353854202,1740095441032,-795.74,0.00013863,2]
[353854203,1740095441042,-500.0,0.00013863,2]
[353854204,1740095441052,-1798.11,0.00013863,2]
[353854205,1740095441063,-503.03,0.00013863,2]
[353854206,1740095441074,-13509.4,0.00013863,2]
[353854207,1740095441084,-500.0,0.00013863,2]
[353854208,1740095441094,-2522.59,0.00013863,2]
[353854209,1740095441103,-192.65698737,0.00013863,2]
[353854210,1740095441113,-935.19,0.00013863,2]
[353854211,1740095441122,-1508.34,0.00013863,2]
[353854212,1740095441133,-1209.86,0.00013863,2]
[353854213,1740095441143,-840.39,0.00013863,2]
[353854214,1740095441152,-1181.45,0.00013863,2]
[353854215,1740095441162,-3237.47,0.00013863,2]
[353854216,1740095441173,-6388.26,0.00013863,2]
[353854217,1740095441183,-509.15,0.00013863,2]
[353854218,1740095441197,-3258.4,0.00013863,2]
[353854219,1740095441207,-3411.37,0.00013863,2]
[353854220,1740095441218,-539.08,0.00013863,2]
[353854221,1740095441227,-633.3,0.00013863,2]
[353854222,1740095441237,-500.0,0.00013863,2]
[353854223,1740095441246,-1844.13,0.00013863,2]
[353854224,1740095441255,-500.0,0.00013863,2]
[353854225,1740095441265,-1148.55,0.00013863,2]
[353854226,1740095441274,-793.49,0.00013863,2]
[353854227,1740095441288,-610.58,0.00013863,2]
[353854228,1740095441298,-1904.41,0.00013863,2]
[353854229,1740095441308,-500.0,0.00013863,2]
[353854230,1740095441318,-1016.61,0.00013863,2]
[353854231,1740095441328,-537.73,0.00013863,2]
[353854232,1740095441337,-2226.56,0.00013863,2]
[353854233,1740095441347,-506.77,0.00013863,2]
[353854234,1740095441356,-1934.19,0.00013863,2]
[353854235,1740095441366,-500.0,0.00013863,2]
[353854236,1740095441376,-2190.09,0.00013863,2]
[353854237,1740095441386,-500.0,0.00013863,2]
[353854238,1740095441396,-5448.61,0.00013863,2]
[353854239,1740095441405,-522.5,0.00013863,2]
[353854240,1740095441415,-500.0,0.00013863,2]
[353854241,1740095441424,-700.96,0.00013863,2]
[353854242,1740095441433,-16769.03,0.00013863,2]
[353854243,1740095441443,-1735.92,0.00013863,2]
[353854244,1740095441452,-500.0,0.00013863,2]
[353854245,1740095441462,-500.0,0.00013863,2]
[353854246,1740095441472,-500.0,0.00013863,2]
[353854247,1740095441482,-500.0,0.00013863,2]
[353854248,1740095441492,-836.75,0.00013863,2]
[353854249,1740095441501,-500.0,0.00013863,2]
[353854250,1740095441511,-1956.0,0.00013863,2]
[353854251,1740095441521,-500.0,0.00013863,2]
[353854252,1740095441531,-500.0,0.00013863,2]
[353854253,1740095441540,-500.0,0.00013863,2]
[353854254,1740095441550,-460.55664343,0.00013945,2]